fUST/lending_fUST_20250121
["ID","MTS","AMOUNT","RATE_DAILY","PERIOD"]
[349726126,1737396642469,-500.0,0.00021917,3]
[349726128,1737396642478,-298.63664377,0.00021917,3]
[349726153,1737396643050,-201.36335623,0.00021917,3]
[349726156,1737396643061,-314.86667777,0.00021917,3]
[349726161,1737396643105,-185.13332223,0.00021917,3]
[349726163,1737396643115,-500.0,0.00021917,3]
[349726165,1737396643126,-500.0,0.00021917,3]
[349726167,1737396643136,-500.0,0.00021917,3]
[349726169,1737396643146,-191.06873037,0.00021917,3]
[349726171,1737396643155,-500.0,0.00021917,3]
[349726173,1737396643165,-590.81683659,0.00021917,3]
[349726175,1737396643174,-500.0,0.00021917,3]
[349726177,1737396643184,-500.0,0.00021917,3]
[349726179,1737396643193,-500.0,0.00021917,3]
[349726181,1737396643203,-500.0,0.00021917,3]
[349726183,1737396643213,-500.0,0.00021917,3]
[349726185,1737396643223,-737.53,0.00021917,3]
[349726187,1737396643233,-500.0,0.00021917,3]
[349726189,1737396643243,-500.0,0.00021917,3]
[349726191,1737396643253,-500.0,0.00021917,3]
[349726193,1737396643263,-500.0,0.00021917,3]
[349726195,1737396643273,-500.0,0.00021917,3]
[349726197,1737396643283,-500.0,0.00021917,3]
[349726199,1737396643297,-500.0,0.00021917,3]
[349726201,1737396643306,-500.0,0.00021917,3]
[349726203,1737396643316,-500.0,0.00021917,3]
[349726205,1737396643325,-211.90923827,0.00021917,3]
[349726207,1737396643335,-381.8488574,0.00021917,3]
[349726209,1737396643346,-500.0,0.00021917,3]
[349726211,1737396643356,-500.0,0.00021917,3]
[349726213,1737396643367,-500.0,0.00021917,3]
[349726215,1737396643377,-500.0,0.00021917,3]
[349726217,1737396643387,-500.0,0.00021917,3]
[349726219,1737396643398,-500.0,0.00021917,3]
[349726221,1737396643408,-500.0,0.00021917,3]
[349726223,1737396643418,-500.0,0.00021917,3]
[349726225,1737396643428,-315.61908753,0.00021917,3]
[349726227,1737396643438,-500.0,0.00021917,3]
[349726229,1737396643448,-500.0,0.00021917,3]
[349726232,1737396643458,-500.0,0.00021917,3]
[349726234,1737396643468,-500.0,0.00021917,3]
[349726235,1737396643478,-500.0,0.00021917,3]
[349726238,1737396643488,-500.0,0.00021917,3]
[349726240,1737396643497,-500.0,0.00021917,3]
[349726242,1737396643507,-500.0,0.00021917,3]
[349726244,1737396643518,-500.0,0.00021917,3]
[349726245,1737396643527,-500.0,0.00021917,3]
[349726247,1737396643537,-500.0,0.00021917,3]
[349726249,1737396643547,-500.0,0.00021917,3]
[349726251,1737396643557,-454.31441993,0.00021917,3]
[349726253,1737396643567,-500.0,0.00021917,3]
[349726255,1737396643576,-500.0,0.00021917,3]
[349726257,1737396643586,-500.0,0.00021917,3]
[349726259,1737396643596,-500.0,0.00021917,3]
[349726261,1737396643606,-500.0,0.00021917,3]
[349726263,1737396643616,-500.0,0.00021917,3]
[349726265,1737396643625,-500.0,0.00021917,3]
[349726267,1737396643635,-500.0,0.00021917,3]
[349726269,1737396643645,-250.63475563,0.00021917,3]
[349726271,1737396643655,-500.0,0.00021917,3]
[349726272,1737396643664,-500.0,0.00021917,3]
[349726274,1737396643675,-500.0,0.00021917,3]
[349726276,1737396643684,-500.0,0.00021917,3]
[349726279,1737396643694,-501.25459243,0.00021917,3]
[349726280,1737396643704,-500.0,0.00021917,3]
[349726283,1737396643715,-500.0,0.00021917,3]
[349726285,1737396643724,-500.0,0.00021917,3]
[349726287,1737396643734,-500.0,0.00021917,3]
[349726289,1737396643744,-500.0,0.00021917,3]
[349726291,1737396643757,-500.0,0.00021917,3]
[349726292,1737396643767,-500.0,0.00021917,3]
[349726293,1737396643776,-500.0,0.00021917,3]
[349726294,1737396643788,-650.63,0.00021917,3]
[349726295,1737396643797,-500.0,0.00021917,3]
[349726296,1737396643807,-500.0,0.00021917,3]
[349726297,1737396643817,-500.0,0.00021917,3]
[349726298,1737396643827,-511.9003584,0.00021917,3]
[349726299,1737396643837,-500.0,0.00021917,3]
[349726300,1737396643847,-1505.76,0.00021917,2]
[349726301,1737396643857,-506.16591319,0.00021917,3]
[349726302,1737396643867,-500.0,0.00021917,3]
[349726303,1737396643877,-500.0,0.00021917,3]
[349726304,1737396643887,-500.0,0.00021917,3]
[349726305,1737396643896,-500.0,0.00021917,3]
[349726306,1737396643905,-500.0,0.00021917,3]
[349726307,1737396643915,-500.0,0.00021917,3]
[349726308,1737396643925,-500.0,0.00021917,3]
[349726309,1737396643935,-500.0,0.00021917,3]
[349726310,1737396643947,-500.0,0.00021917,3]
[349726311,1737396643957,-500.0,0.00021917,3]
[349726312,1737396643967,-918.23,0.00021917,3]
[349726313,1737396643977,-511.04060403,0.00021917,3]
[349726314,1737396643988,-500.0,0.00021917,3]
[349726315,1737396643999,-500.0,0.00021917,3]
[349726316,1737396644008,-504.59975328,0.00021917,3]
[349726317,1737396644020,-2140.87,0.00021917,3]
[349726318,1737396644031,-500.0,0.00021917,3]
[349726319,1737396644043,-500.0,0.00021917,3]
[349726320,1737396644054,-500.0,0.00021917,3]
[349726321,1737396644064,-500.0,0.00021917,3]
[349726322,1737396644074,-482.18731766,0.00021917,3]
[349726323,1737396644083,-500.0,0.00021917,3]
[349726324,1737396644093,-500.0,0.00021917,3]
[349726325,1737396644104,-500.0,0.00021917,3]
[349726326,1737396644114,-508.2531757,0.00021917,3]
[349726327,1737396644126,-500.0,0.00021917,3]
[349726328,1737396644135,-500.0,0.00021917,3]
[349726329,1737396644145,-1287.93,0.00021917,3]
[349726330,1737396644156,-500.0,0.00021917,3]
[349726331,1737396644165,-500.0,0.00021917,3]
[349726332,1737396644260,-500.0,0.00021917,3]
[349726333,1737396644271,-1273.12,0.00021917,3]
[349726334,1737396644281,-500.0,0.00021917,3]
[349726335,1737396644293,-2782.06,0.00021917,3]
[349726336,1737396644303,-500.0,0.00021917,3]
[349726337,1737396644314,-1026.84,0.00021917,3]
[349726338,1737396644324,-500.0,0.00021917,3]
[349726339,1737396644334,-500.0,0.00021917,3]
[349726340,1737396644344,-500.0,0.00021917,2]
[349726341,1737396644354,-500.0,0.00021917,3]
[349726342,1737396644364,-157.97345824,0.00021917,3]
[349726343,1737396644374,-426.4129445,0.00021917,3]
[349726344,1737396644384,-500.0,0.00021917,3]
[349726345,1737396644395,-500.0,0.00021917,3]
[349726346,1737396644406,-500.0,0.00021917,3]
[349726347,1737396644417,-500.0,0.00021917,3]
[349726348,1737396644427,-659.18,0.00021917,3]
[349726349,1737396644437,-500.0,0.00021917,3]
[349726350,1737396644447,-500.0,0.00021917,3]
[349726351,1737396644456,-500.0,0.00021917,3]
[349726352,1737396644466,-584.41,0.00021917,3]
[349726353,1737396644476,-500.0,0.00021917,3]
[349726354,1737396644485,-584.41,0.00021917,3]
[349726355,1737396644495,-584.41,0.00021917,3]
[349726356,1737396644505,-584.41,0.00021917,3]
[349726357,1737396644515,-584.41,0.00021917,3]
[349726358,1737396644524,-584.41,0.00021917,3]
[349726359,1737396644534,-2546.39,0.00021917,3]
[349726360,1737396644550,-584.41,0.00021917,3]
[349726361,1737396644560,-584.41,0.00021917,3]
[349726362,1737396644571,-584.41,0.00021917,3]
[349726363,1737396644581,-584.41,0.00021917,3]
[349726364,1737396644591,-584.41,0.00021917,3]
[349726365,1737396644601,-584.41,0.00021917,3]
[349726366,1737396644612,-584.41,0.00021917,3]
[349726367,1737396644622,-500.0,0.00021917,3]
[349726368,1737396644633,-516.230236,0.00021917,3]
[349726369,1737396644643,-867.04,0.00021917,3]
[349726370,1737396644654,-500.0,0.00021917,3]
[349726371,1737396644664,-500.0,0.00021917,3]
[349726372,1737396644675,-500.0,0.00021917,3]
[349726373,1737396644685,-500.0,0.00021917,3]
[349726374,1737396644695,-500.0,0.00021917,3]
[349726375,1737396644705,-500.0,0.00021917,3]
[349726376,1737396644715,-500.0,0.00021917,3]
[349726377,1737396644725,-500.0,0.00021917,3]
[349726378,1737396644734,-510.71854152,0.00021917,3]
[349726379,1737396644744,-500.0,0.00021917,3]
[349726380,1737396644754,-500.0,0.00021917,3]
[349726381,1737396644763,-500.0,0.00021917,3]
[349726382,1737396644773,-668.74,0.00021917,3]
[349726383,1737396644783,-500.0,0.00021917,3]
[349726384,1737396644797,-500.0,0.00021917,3]
[349726385,1737396644807,-306.30251824,0.00021917,3]
[349726386,1737396644817,-552.29,0.00021917,3]
[349726387,1737396644827,-500.0,0.00021917,3]
[349726388,1737396644836,-500.0,0.00021917,3]
[349726389,1737396644846,-500.0,0.00021917,3]
[349726390,1737396644857,-500.0,0.00021917,3]
[349726391,1737396644868,-500.0,0.00021917,3]
[349726392,1737396644877,-500.0,0.00021917,3]
[349726393,1737396644887,-500.0,0.00021917,3]
[349726394,1737396644898,-500.0,0.00021917,3]
[349726395,1737396644907,-500.0,0.00021917,3]
[349726396,1737396644917,-1602.44,0.00021917,3]
[349726397,1737396644927,-500.0,0.00021917,3]
[349726398,1737396644938,-500.0,0.00021917,3]
[349726399,1737396644951,-8737.27,0.00021917,3]
[349726400,1737396644962,-500.0,0.00021917,3]
[349726401,1737396644973,-500.0,0.00021917,3]
[349726402,1737396644985,-926.89,0.00021917,3]
[349726403,1737396644995,-500.0,0.00021917,3]
[349726404,1737396645006,-500.0,0.00021917,3]
[349726405,1737396645017,-500.0,0.00021917,3]
[349726406,1737396645028,-5142.17,0.00021917,3]
[349726407,1737396645040,-500.0,0.00021917,3]
[349726408,1737396645051,-1599.63,0.00021917,3]
[349726409,1737396645062,-662.04,0.00021917,3]
[349726410,1737396645072,-500.0,0.00021917,3]
[349726411,1737396645082,-500.0,0.00021917,3]
[349726412,1737396645091,-500.0,0.00021917,3]
[349726413,1737396645101,-500.0,0.00021917,3]
[349726414,1737396645111,-801.93,0.00021917,3]
[349726415,1737396645121,-500.0,0.00021917,3]
[349726416,1737396645131,-500.0,0.00021917,3]
[349726417,1737396645141,-500.0,0.00021917,3]
[349726418,1737396645151,-500.0,0.00021917,3]
[349726419,1737396645161,-1829.66,0.00021917,3]
[349726420,1737396645171,-500.0,0.00021917,3]
[349726421,1737396645181,-2226.09,0.00021917,3]
[349726422,1737396645191,-500.0,0.00021917,3]
[349726423,1737396645202,-500.0,0.00021917,3]
[349726424,1737396645211,-500.0,0.00021917,3]
[349726425,1737396645221,-500.0,0.00021917,3]
[349726426,1737396645231,-500.0,0.00021917,3]
[349726427,1737396645240,-705.88,0.00021917,3]
[349726428,1737396645250,-853.59,0.00021917,3]
[349726429,1737396645260,-508.02202711,0.00021917,3]
[349726430,1737396645270,-1818.79,0.00021917,3]
[349726431,1737396645281,-22123.79,0.00021917,3]
[349726432,1737396645293,-500.0,0.00021917,3]
[349726433,1737396645303,-500.0,0.00021917,3]
[349726434,1737396645313,-500.0,0.00021917,3]
[349726435,1737396645322,-500.0,0.00021917,3]
[349726436,1737396645332,-500.0,0.00021917,3]
[349726437,1737396645342,-500.0,0.00021917,3]
[349726438,1737396645352,-3935.05,0.00021917,3]
[349726439,1737396645361,-500.0,0.00021917,3]
[349726440,1737396645372,-500.0,0.00021917,3]
[349726441,1737396645382,-500.0,0.00021917,3]
[349726442,1737396645392,-500.0,0.00021917,3]
[349726443,1737396645402,-500.0,0.00021917,3]
[349726444,1737396645412,-5501.55,0.00021917,3]
[349726445,1737396645422,-500.0,0.00021917,3]
[349726446,1737396645432,-160.0,0.0002195,3]
[349726447,1737396645442,-223.71063018,0.00021954,2]
[349726448,1737396645452,-500.0,0.00021973,2]
[349726449,1737396645462,-620.39758317,0.00021973,2]
[349726450,1737396645471,-500.0,0.00021973,2]
[349726452,1737396645481,-500.0,0.00021973,2]
[349726453,1737396645490,-500.0,0.00021973,2]
[349726454,1737396645500,-170.0,0.00022,2]
[349726455,1737396645510,-584.41,0.00022053,3]
[349726457,1737396645520,-584.41,0.00022053,3]
[349726458,1737396645530,-584.41,0.00022053,3]
[349726459,1737396645543,-584.41,0.00022053,3]
[349726460,1737396645552,-584.41,0.00022053,3]
[349726461,1737396645562,-500.0,0.00022054,3]
[349726462,1737396645572,-500.0,0.00022054,3]
[349726463,1737396645582,-500.0,0.00022054,3]
[349726464,1737396645592,-500.0,0.00022054,3]
[349726465,1737396645602,-500.0,0.00022054,3]
[349726466,1737396645612,-500.0,0.00022054,2]
[349726467,1737396645622,-751.57,0.00022054,3]
[349726468,1737396645632,-800.87,0.00022054,3]
[349726469,1737396645641,-500.0,0.00022054,3]
[349726470,1737396645651,-500.0,0.00022054,3]
[349726471,1737396645661,-500.0,0.00022054,3]
[349726473,1737396645670,-500.0,0.00022054,3]
[349726474,1737396645680,-500.0,0.00022054,3]
[349726475,1737396645690,-737.53,0.00022054,3]
[349726478,1737396645700,-500.0,0.00022054,3]
[349726481,1737396645710,-500.0,0.00022054,3]
[349726483,1737396645719,-500.0,0.00022054,3]
[349726485,1737396645729,-500.0,0.00022054,3]
[349726487,1737396645739,-500.0,0.00022054,3]
[349726488,1737396645750,-500.0,0.00022054,3]
[349726490,1737396645759,-500.0,0.00022054,3]
[349726492,1737396645769,-500.0,0.00022054,3]
[349726494,1737396645778,-500.0,0.00022054,3]
[349726496,1737396645789,-500.0,0.00022054,3]
[349726498,1737396645799,-500.0,0.00022054,3]
[349726500,1737396645810,-500.0,0.00022054,3]
[349726502,1737396645820,-500.0,0.00022054,3]
[349726504,1737396645829,-500.0,0.00022054,3]
[349726506,1737396645840,-624.08909257,0.00022054,3]
[349726508,1737396645850,-394.21203353,0.00022054,3]
[349726510,1737396645860,-500.0,0.00022054,3]
[349726512,1737396645870,-575.11111302,0.00022054,3]
[349726514,1737396645879,-500.0,0.00022054,3]
[349726523,1737396645889,-650.63,0.00022054,3]
[349726525,1737396645978,-399.13313392,0.00022054,3]
[349726527,1737396645989,-500.0,0.00022054,3]
[349726529,1737396646000,-500.0,0.00022054,3]
[349726531,1737396646010,-1505.76,0.00022054,2]
[349726533,1737396646022,-241.4097453,0.00022054,3]
[349726535,1737396646032,-500.0,0.00022054,3]
[349726537,1737396646051,-918.23,0.00022054,3]
[349726539,1737396646062,-2140.87,0.00022054,3]
[349726541,1737396646073,-532.21681868,0.00022054,3]
[349726543,1737396646083,-500.0,0.00022054,3]
[349726545,1737396646092,-500.0,0.00022054,3]
[349726546,1737396646102,-500.0,0.00022054,3]
[349726547,1737396646112,-639.05590263,0.00022054,3]
[349726549,1737396646122,-1287.93,0.00022054,3]
[349726550,1737396646132,-500.0,0.00022054,3]
[349726552,1737396646142,-500.0,0.00022054,3]
[349726554,1737396646151,-1273.12,0.00022054,3]
[349726556,1737396646161,-2782.06,0.00022054,3]
[349726558,1737396646171,-1026.84,0.00022054,3]
[349726560,1737396646180,-500.0,0.00022054,3]
[349726562,1737396646191,-500.0,0.00022054,2]
[349726564,1737396646200,-500.0,0.00022054,3]
[349726566,1737396646210,-500.0,0.00022054,3]
[349726568,1737396646220,-546.30428975,0.00022054,3]
[349726570,1737396646230,-659.18,0.00022054,3]
[349726572,1737396646240,-500.0,0.00022054,3]
[349726574,1737396646250,-223.81653082,0.00022054,3]
[349726576,1737396646260,-2546.39,0.00022054,3]
[349726578,1737396646269,-255.88007257,0.00022054,3]
[349726580,1737396646279,-867.04,0.00022054,3]
[349726582,1737396646292,-500.0,0.00022054,3]
[349726584,1737396646302,-500.0,0.00022054,3]
[349726586,1737396646312,-500.0,0.00022054,3]
[349726588,1737396646321,-668.74,0.00022054,3]
[349726590,1737396646331,-500.0,0.00022054,3]
[349726592,1737396646341,-552.29,0.00022054,3]
[349726594,1737396646351,-500.0,0.00022054,3]
[349726596,1737396646361,-500.0,0.00022054,3]
[349726598,1737396646371,-500.0,0.00022054,3]
[349726600,1737396646380,-500.0,0.00022054,3]
[349726602,1737396646390,-500.0,0.00022054,3]
[349726604,1737396646400,-1602.44,0.00022054,3]
[349726606,1737396646410,-500.0,0.00022054,3]
[349726608,1737396646420,-500.0,0.00022054,3]
[349726610,1737396646429,-8737.27,0.00022054,3]
[349726612,1737396646439,-500.0,0.00022054,3]
[349726613,1737396646449,-500.0,0.00022054,3]
[349726614,1737396646459,-926.89,0.00022054,3]
[349726615,1737396646469,-500.0,0.00022054,3]
[349726616,1737396646479,-5142.17,0.00022054,3]
[349726617,1737396646490,-1599.63,0.00022054,3]
[349726618,1737396646500,-662.04,0.00022054,3]
[349726619,1737396646510,-500.0,0.00022054,3]
[349726620,1737396646520,-500.0,0.00022054,3]
[349726621,1737396646530,-801.93,0.00022054,3]
[349726622,1737396646544,-500.0,0.00022054,3]
[349726623,1737396646554,-1829.66,0.00022054,3]
[349726624,1737396646564,-500.0,0.00022054,3]
[349726625,1737396646574,-2226.09,0.00022054,3]
[349726626,1737396646583,-500.0,0.00022054,3]
[349726628,1737396646593,-500.0,0.00022054,3]
[349726630,1737396646603,-500.0,0.00022054,3]
[349726632,1737396646613,-500.0,0.00022054,3]
[349726634,1737396646623,-511.32,0.00022054,3]
[349726636,1737396646633,-705.88,0.00022054,3]
[349726638,1737396646642,-853.59,0.00022054,3]
[349726640,1737396646652,-1818.79,0.00022054,3]
[349726643,1737396646662,-22123.79,0.00022054,3]
[349726644,1737396646671,-500.0,0.00022054,3]
[349726646,1737396646681,-500.0,0.00022054,3]
[349726648,1737396646690,-500.0,0.00022054,3]
[349726650,1737396646700,-573.02758374,0.00022054,3]
[349726653,1737396646710,-3935.05,0.00022054,3]
[349726655,1737396646719,-500.0,0.00022054,3]
[349726657,1737396646732,-500.0,0.00022054,3]
[349726660,1737396646749,-500.0,0.00022054,3]
[349726663,1737396646767,-500.0,0.00022054,3]
[349726665,1737396646781,-5501.55,0.00022054,3]
[349726667,1737396646797,-183.28718795,0.00022054,3]
[349726670,1737396646812,-500.0,0.00022073,2]
[349726672,1737396646827,-206.56771638,0.0002215,3]
[349726675,1737396646842,-498.6364064,0.00022173,2]
[349726677,1737396646858,-501.61105771,0.00022173,2]
[349726680,1737396646873,-160.53164959,0.00022173,2]
[349726682,1737396646887,-169.07682624,0.00022173,2]
[349726685,1737396646902,-368.14277227,0.00022173,2]
[349726687,1737396646915,-218.56266223,0.00022173,2]
[349726690,1737396646930,-566.08265342,0.0002219,2]
[349726693,1737396646952,-176.70488688,0.0002219,2]
[349726695,1737396646964,-584.41,0.0002219,3]
[349726697,1737396646977,-584.41,0.0002219,3]
[349726700,1737396646992,-584.41,0.0002219,3]
[349726702,1737396647007,-584.41,0.0002219,3]
[349726705,1737396647022,-584.41,0.0002219,3]
[349726707,1737396647041,-584.42177452,0.0002219,3]
[349726710,1737396647057,-500.0,0.00022191,3]
[349726712,1737396647072,-500.0,0.00022191,3]
[349726715,1737396647083,-500.0,0.00022191,3]
[349726717,1737396647095,-500.0,0.00022191,3]
[349726719,1737396647107,-500.0,0.00022191,3]
[349726722,1737396647123,-500.0,0.00022191,2]
[349726724,1737396647138,-751.57,0.00022191,3]
[349726726,1737396647149,-800.87,0.00022191,3]
[349726729,1737396647161,-500.0,0.00022191,3]
[349726731,1737396647175,-500.0,0.00022191,3]
[349726734,1737396647189,-500.0,0.00022191,3]
[349726736,1737396647200,-500.0,0.00022191,3]
[349726738,1737396647212,-500.0,0.00022191,3]
[349726740,1737396647224,-737.53,0.00022191,3]
[349726743,1737396647237,-500.0,0.00022191,3]
[349726745,1737396647250,-500.0,0.00022191,3]
[349726747,1737396647264,-500.0,0.00022191,3]
[349726750,1737396647276,-500.0,0.00022191,3]
[349726752,1737396647292,-500.0,0.00022191,3]
[349726754,1737396647304,-500.0,0.00022191,3]
[349726757,1737396647317,-500.0,0.00022191,3]
[349726759,1737396647330,-500.0,0.00022191,3]
[349726761,1737396647343,-500.0,0.00022191,3]
[349726764,1737396647356,-500.0,0.00022191,3]
[349726766,1737396647369,-500.0,0.00022191,3]
[349726768,1737396647381,-500.0,0.00022191,3]
[349726771,1737396647393,-500.0,0.00022191,3]
[349726773,1737396647406,-650.63,0.00022191,3]
[349726775,1737396647419,-500.0,0.00022191,3]
[349726777,1737396647431,-500.0,0.00022191,3]
[349726780,1737396647444,-1505.76,0.00022191,2]
[349726782,1737396647456,-918.23,0.00022191,3]
[349726784,1737396647469,-2140.87,0.00022191,3]
[349726787,1737396647482,-500.0,0.00022191,3]
[349726789,1737396647495,-500.0,0.00022191,3]
[349726791,1737396647508,-534.60938801,0.00022191,3]
[349726794,1737396647520,-1287.93,0.00022191,3]
[349726796,1737396647533,-500.0,0.00022191,3]
[349726798,1737396647546,-1273.12,0.00022191,3]
[349726801,1737396647559,-2782.06,0.00022191,3]
[349726803,1737396647571,-1026.84,0.00022191,3]
[349726805,1737396647583,-180.11,0.00022191,3]
[349726808,1737396647596,-500.0,0.00022191,2]
[349726810,1737396647608,-462.76592858,0.00022191,3]
[349726812,1737396647620,-497.2675258,0.00022191,3]
[349726815,1737396647633,-659.18,0.00022191,3]
[349726817,1737396647646,-500.0,0.00022191,3]
[349726819,1737396647655,-2546.39,0.00022191,3]
[349726821,1737396647666,-867.04,0.00022191,3]
[349726823,1737396647675,-500.0,0.00022191,3]
[349726825,1737396647685,-500.0,0.00022191,3]
[349726827,1737396647696,-668.74,0.00022191,3]
[349726829,1737396647705,-500.0,0.00022191,3]
[349726846,1737396647852,-552.29,0.00022191,3]
[349726848,1737396647867,-500.0,0.00022191,3]
[349726850,1737396647877,-500.0,0.00022191,3]
[349726853,1737396647888,-575.23,0.00022191,3]
[349726855,1737396647898,-500.0,0.00022191,3]
[349726857,1737396647909,-500.0,0.00022191,3]
[349726859,1737396647918,-1602.44,0.00022191,3]
[349726861,1737396647928,-500.0,0.00022191,3]
[349726863,1737396647938,-8737.27,0.00022191,3]
[349726865,1737396647953,-500.0,0.00022191,3]
[349726867,1737396647963,-500.0,0.00022191,3]
[349726869,1737396647973,-926.89,0.00022191,3]
[349726871,1737396647984,-500.0,0.00022191,3]
[349726873,1737396647995,-5142.17,0.00022191,3]
[349726875,1737396648005,-1599.63,0.00022191,3]
[349726877,1737396648014,-662.04,0.00022191,3]
[349726879,1737396648024,-500.0,0.00022191,3]
[349726881,1737396648034,-500.0,0.00022191,3]
[349726883,1737396648048,-801.93,0.00022191,3]
[349726885,1737396648058,-184.03734308,0.00022191,3]
[349726887,1737396648068,-1829.66,0.00022191,3]
[349726889,1737396648078,-500.0,0.00022191,3]
[349726891,1737396648087,-2226.09,0.00022191,3]
[349726893,1737396648097,-500.0,0.00022191,3]
[349726895,1737396648107,-500.0,0.00022191,3]
[349726897,1737396648117,-500.0,0.00022191,3]
[349726899,1737396648128,-705.88,0.00022191,3]
[349726901,1737396648138,-853.59,0.00022191,3]
[349726903,1737396648148,-1818.79,0.00022191,3]
[349726905,1737396648157,-22123.79,0.00022191,3]
[349726907,1737396648167,-500.0,0.00022191,3]
[349726909,1737396648176,-500.0,0.00022191,3]
[349726911,1737396648186,-3935.05,0.00022191,3]
[349726913,1737396648196,-500.0,0.00022191,3]
[349726915,1737396648206,-500.0,0.00022191,3]
[349726917,1737396648217,-500.0,0.00022191,3]
[349726919,1737396648226,-5501.55,0.00022191,3]
[349726921,1737396648235,-214.3,0.00022328,3]
[349726923,1737396648245,-500.0,0.00022328,3]
[349726925,1737396648254,-500.0,0.00022328,3]
[349726927,1737396648264,-500.0,0.00022328,3]
[349726929,1737396648274,-167.33665017,0.00022328,3]
[349726931,1737396648285,-500.0,0.00022328,2]
[349726933,1737396648299,-751.57,0.00022328,3]
[349726935,1737396648309,-800.87,0.00022328,3]
[349726937,1737396648319,-500.0,0.00022328,3]
[349726939,1737396648329,-500.0,0.00022328,3]
[349726941,1737396648338,-500.0,0.00022328,3]
[349726943,1737396648348,-500.0,0.00022328,3]
[349726945,1737396648358,-500.0,0.00022328,3]
[349726947,1737396648368,-737.53,0.00022328,3]
[349726949,1737396648378,-500.0,0.00022328,3]
[349726951,1737396648388,-500.0,0.00022328,3]
[349726953,1737396648398,-500.0,0.00022328,3]
[349726955,1737396648408,-500.0,0.00022328,3]
[349726957,1737396648418,-500.0,0.00022328,3]
[349726959,1737396648428,-500.0,0.00022328,3]
[349726961,1737396648437,-500.0,0.00022328,3]
[349726963,1737396648447,-500.0,0.00022328,3]
[349726965,1737396648457,-500.0,0.00022328,3]
[349726968,1737396648467,-500.0,0.00022328,3]
[349726970,1737396648477,-500.0,0.00022328,3]
[349726971,1737396648486,-500.0,0.00022328,3]
[349726973,1737396648495,-500.0,0.00022328,3]
[349726976,1737396648505,-650.63,0.00022328,3]
[349726978,1737396648515,-303.9017255,0.00022328,3]
[349726980,1737396648525,-500.0,0.00022328,3]
[349726982,1737396648535,-1505.76,0.00022328,2]
[349726983,1737396648547,-918.23,0.00022328,3]
[349726986,1737396648557,-151.0,0.00022328,7]
[349726988,1737396648568,-2140.87,0.00022328,3]
[349726990,1737396648577,-500.0,0.00022328,3]
[349726992,1737396648587,-500.0,0.00022328,3]
[349726993,1737396648597,-1287.93,0.00022328,3]
[349726996,1737396648607,-500.0,0.00022328,3]
[349726998,1737396648617,-1273.12,0.00022328,3]
[349726999,1737396648626,-2782.06,0.00022328,3]
[349727001,1737396648636,-1026.84,0.00022328,3]
[349727003,1737396648645,-500.0,0.00022328,2]
[349727005,1737396648655,-659.18,0.00022328,3]
[349727008,1737396648665,-500.0,0.00022328,3]